[Event "XIV American Continental-ch 2019"]
[Site "Sao Paulo"]
[Date "2019.07.06"]
[Round "2.23"]
[White "Roselli Mailhe, Bernardo"]
[Black "Carvalho, Guillermo"]
[Result "1/2-1/2"]
[ECO "D34"]
[WhiteElo "2471"]
[BlackElo "2162"]
[Annotator "RC"]
[PlyCount "170"]
[EventDate "2019.07.05"]
[EventType "swiss"]
[EventCountry "BRA"]
[SourceTitle "playchess.com"]
[Source "ChessBase"]
[SourceQuality "1"]
[TimeControl "40/5400+30:1800+30"]

1. d4 {[%emt 0:03:47]} d5 {[%emt 0:00:00]} 2. c4 {[%emt 0:00:51]} e6 {[%emt 0:00:00]} 3. Nf3 {[%emt 0:00:19]} c5 {[%emt 0:00:10]} 4. cxd5 {[%emt 0:00:06]} exd5 {[%emt 0:00:07]} 5. g3 {[%emt 0:00:05]} Nf6 {[%emt 0:00:08]} 6. Bg2 {[%emt 0:00:41]} Be7 {[%emt 0:00:07]} 7. O-O {[%emt 0:01:41]} O-O {[%emt 0:00:28]} 8. Nc3 {[%emt 0:05:03]} Nc6 {[%emt 0:01:25]} 9. dxc5 {[%emt 0:01:09]} Bxc5 {[%emt 0:02:15]} 10. Na4 {[%emt 0:00:05]} Be7 {[%emt 0:02:49]} 11. Be3 {[%emt 0:00:06]} Ne4 {[%emt 0:05:43]} 12. Rc1 {[%emt 0:04:04]} Be6 {[%emt 0:03:51]} 13. Nd4 {[%emt 0:06:19]} Nxd4 {[%emt 0:02:55]} 14. Bxd4 {[%emt 0:00:07]} Qd7 {[%emt 0:17:55]} 15. f3 {[%emt 0:12:31]} Nf6 {[%emt 0:00:24]} 16. Nc5 {[%emt 0:01:03]} Bxc5 {[%emt 0:00:32]} 17. Rxc5 {[%emt 0:00:06]} b6 {[%emt 0:01:22]} 18. Rc3 {[%emt 0:04:12]} Qe7 {[%emt 0:02:14]} 19. Qd2 {[%emt 0:02:13]} Rac8 {[%emt 0:07:12]} 20. Rfc1 {[%emt 0:00:15]} Rxc3 {[%emt 0:00:44]} 21. Rxc3 {[%emt 0:00:06]} Rc8 {[%emt 0:12:42]} 22. Rxc8+ {[%emt 0:19:16]} Bxc8 {[%emt 0:00:07]} 23. Qc3 {[%emt 0:00:04]} Ba6 {[%emt 0:00:51]} 24. e3 {[%emt 0:00:27]} Ne8 {[%emt 0:01:32]} 25. a4 {[%emt 0:02:09]} Bc4 {[%emt 0:08:41]} 26. b3 {[%emt 0:09:39]} Ba6 {[%emt 0:03:37]} 27. a5 {[%emt 0:00:38]} Qe6 {[%emt 0:01:56]} 28. Kf2 {[%emt 0:01:47]} Qd6 {[%emt 0:02:21]} 29. Bf1 {[%emt 0:07:23]} Bxf1 {[%emt 0:01:40]} 30. Kxf1 {[%emt 0:00:04]} f6 {[%emt 0:00:38]} 31. Qc8 {[%emt 0:02:31]} Kf8 {[%emt 0:01:22]} 32. axb6 {[%emt 0:03:49]} axb6 {[%emt 0:00:06]} 33. Qb7 {[%emt 0:00:08]} Nc7 {[%emt 0:05:07]} 34. Qxb6 {[%emt 0:02:30]} Qd7 {[%emt 0:00:22]} 35. Qb7 {[%emt 0:01:54]} Qb5+ {[%emt 0:01:09]} 36. Qxb5 {[%emt 0:00:07]} Nxb5 {[%emt 0:00:03]} 37. Ke2 {[%emt 0:01:06]} Ke7 {[%emt 0:00:08]} 38. Kd3 {[%emt 0:00:47]} Ke6 {[%emt 0:00:15]} 39. g4 {[%emt 0:05:39]} g6 {[%emt 0:00:31]} 40. e4 {[%emt 0:02:14]} f5 {[%emt 0:01:27]} 41. gxf5+ {[%emt 0:05:06]} gxf5 {[%emt 0:00:11]} 42. exd5+ {[%emt 0:00:05]} Kxd5 {[%emt 0:00:08]} 43. Bg7 {[%emt 0:00:15]} Kc5 {[%emt 0:01:19]} 44. Bf8+ {[%emt 0:06:27]} Kd5 {[%emt 0:00:10]} 45. Ke3 {[%emt 0:00:19]} Nd4 {[%emt 0:00:32]} 46. b4 {[%emt 0:00:06]} Ne6 {[%emt 0:00:29]} 47. Be7 {[%emt 0:00:07]} Kc4 {[%emt 0:02:06]} 48. Bd6 {[%emt 0:03:02]} Kd5 {[%emt 0:00:30]} 49. Bc5 {[%emt 0:00:06]} Ke5 {[%emt 0:00:31]} 50. Kd3 {[%emt 0:02:12]} Kd5 {[%emt 0:00:10]} 51. Be3 {[%emt 0:00:53]} Nc7 {[%emt 0:01:22]} 52. Bf2 {[%emt 0:02:28]} Nb5 {[%emt 0:02:45]} 53. Ke3 {[%emt 0:00:22]} Ke5 {[%emt 0:00:40]} 54. Bg3+ {[%emt 0:00:11]} Ke6 {[%emt 0:00:08]} 55. Kf4 {[%emt 0:01:40]} h6 {[%emt 0:00:07]} 56. Ke3 {[%emt 0:00:07]} Kd5 {[%emt 0:00:39]} 57. Bf4 {[%emt 0:01:47]} h5 {[%emt 0:00:11]} 58. Bh6 {[%emt 0:01:20]} Kc4 {[%emt 0:05:09]} 59. Bf8 {[%emt 0:03:30]} Nc7 {[%emt 0:01:39]} 60. Kf2 {[%emt 0:00:48]} Ne6 {[%emt 0:02:31]} 61. Be7 {[%emt 0:00:09]} Nf4 {[%emt 0:00:16]} 62. Bd6 {[%emt 0:00:58]} Ng6 {[%emt 0:00:44]} 63. Ke3 {[%emt 0:02:32]} Kd5 {[%emt 0:00:29]} 64. Bg3 {[%emt 0:00:08]} Kc4 {[%emt 0:00:39]} 65. Be1 {[%emt 0:00:20]} Kd5 {[%emt 0:00:34]} 66. Bd2 {[%emt 0:06:10]} Kc4 {[%emt 0:00:17]} 67. Ke2 {[%emt 0:00:06]} Kd4 {[%emt 0:01:31]} 68. Be3+ {[%emt 0:00:57]} Kc4 {[%emt 0:00:37]} 69. Bc5 {[%emt 0:00:20]} Nf4+ {[%emt 0:00:42]} 70. Ke3 {[%emt 0:01:18]} Ng2+ {[%emt 0:00:30]} 71. Kd2 {[%emt 0:00:50]} Nf4 {[%emt 0:00:47]} 72. Bd6 {[%emt 0:00:21]} Ng6 {[%emt 0:01:33]} 73. Ke3 {[%emt 0:00:22]} Kd5 {[%emt 0:00:22]} 74. Bc7 {[%emt 0:00:34]} Kc4 {[%emt 0:00:49]} 75. Ba5 {[%emt 0:00:22]} Kd5 {[%emt 0:00:26]} 76. b5 {[%emt 0:01:03]} Kc5 {[%emt 0:00:38]} 77. b6 {[%emt 0:00:12]} Kc6 {[%emt 0:00:17]} 78. h3 {[%emt 0:01:19]} Kb7 {[%emt 0:00:59]} 79. Kd4 {[%emt 0:01:40]} Kc6 {[%emt 0:01:24]} 80. Bd2 {[%emt 0:01:20]} Nh4 {[%emt 0:06:32]} 81. Ke3 {[%emt 0:00:09]} Ng6 {[%emt 0:00:07]} 82. Ba5 {[%emt 0:00:08]} Kb7 {[%emt 0:00:18]} 83. Kd4 {[%emt 0:01:28]} Kc6 {[%emt 0:00:07]} 84. Bd2 {[%emt 0:00:37]} Nh4 {[%emt 0:00:09]} 85. Ke3 {[%emt 0:00:14]} Ng6 {[%emt 0:00:14] Ke4} 1/2-1/2

[Event "XIV American Continental-ch 2019"]
[Site "Sao Paulo"]
[Date "2019.07.06"]
[Round "2.24"]
[White "Caetano, Ryan Wesley Da Costa"]
[Black "Perdomo, Leandro"]
[Result "1/2-1/2"]
[ECO "E94"]
[WhiteElo "2155"]
[BlackElo "2468"]
[Annotator "RC"]
[PlyCount "52"]
[EventDate "2019.07.05"]
[EventType "swiss"]
[EventCountry "BRA"]
[SourceTitle "playchess.com"]
[Source "ChessBase"]
[SourceQuality "1"]
[TimeControl "40/5400+30:1800+30"]

1. d4 {[%emt 0:00:00]} Nf6 {[%emt 0:00:00]} 2. c4 {[%emt 0:00:00]} g6 {[%emt 0:00:00]} 3. Nc3 {[%emt 0:00:00]} Bg7 {[%emt 0:00:00]} 4. e4 {[%emt 0:00:00]} d6 {[%emt 0:00:00]} 5. Nf3 {[%emt 0:00:00]} O-O {[%emt 0:00:00]} 6. Be2 {[%emt 0:00:04]} e5 {[%emt 0:00:18]} 7. O-O {[%emt 0:00:08]} Nbd7 {[%emt 0:00:12]} 8. Be3 {[%emt 0:00:33]} Ng4 {[%emt 0:01:26]} 9. Bg5 {[%emt 0:00:13]} f6 {[%emt 0:00:03]} 10. Bh4 {[%emt 0:03:38]} Nh6 {[%emt 0:05:07]} 11. dxe5 {[%emt 0:08:16]} dxe5 {[%emt 0:03:24]} 12. Qd5+ {[%emt 0:04:31]} Nf7 {[%emt 0:01:18]} 13. Rfd1 {[%emt 0:01:00]} c6 {[%emt 0:02:09]} 14. Qd2 {[%emt 0:00:54]} Qe7 {[%emt 0:02:50]} 15. Na4 {[%emt 0:09:59]} Nb6 {[%emt 0:33:43]} 16. Qc2 {[%emt 0:11:12]} Nd8 {[%emt 0:09:40]} 17. h3 {[%emt 0:05:19]} Ne6 {[%emt 0:07:15]} 18. Rab1 {[%emt 0:02:09]} Nxa4 {[%emt 0:03:20]} 19. Qxa4 {[%emt 0:00:06]} Nc5 {[%emt 0:01:16]} 20. Qa3 {[%emt 0:02:20]} Re8 {[%emt 0:01:48]} 21. Nd2 {[%emt 0:06:25]} a5 {[%emt 0:05:21]} 22. Qe3 {[%emt 0:10:12]} Qf8 {[%emt 0:03:34]} 23. Nb3 {[%emt 0:03:42]} Nxb3 {[%emt 0:07:18]} 24. Qxb3 {[%emt 0:02:04]} Qc5 {[%emt 0:03:39]} 25. Rd2 {[%emt 0:03:00]} a4 {[%emt 0:02:41]} 26. Qc3 {[%emt 0:03:01]} Be6 {[%emt 0:01:54]} 1/2-1/2

[Event "XIV American Continental-ch 2019"]
[Site "Sao Paulo"]
[Date "2019.07.07"]
[Round "3.2"]
[White "Leitao, Rafael"]
[Black "Languidey, Simon Alejandro"]
[Result "1/2-1/2"]
[ECO "D37"]
[WhiteElo "2616"]
[BlackElo "2427"]
[Annotator "RC"]
[PlyCount "59"]
[EventDate "2019.07.05"]
[EventType "swiss"]
[EventCountry "BRA"]
[SourceTitle "playchess.com"]
[Source "ChessBase"]
[SourceQuality "1"]
[TimeControl "40/5400+30:1800+30"]

1. d4 {[%emt 0:02:14]} e6 {[%emt 0:01:37]} 2. c4 {[%emt 0:00:19]} d5 {[%emt 0:01:13]} 3. Nf3 {[%emt 0:00:26]} Nf6 {[%emt 0:00:19]} 4. Nc3 {[%emt 0:00:09]} a6 {[%emt 0:00:36]} 5. cxd5 {[%emt 0:12:22]} exd5 {[%emt 0:00:16]} 6. Bg5 {[%emt 0:02:22]} Be6 {[%emt 0:01:47]} 7. e3 {[%emt 0:03:26]} Nbd7 {[%emt 0:00:48]} 8. Bd3 {[%emt 0:00:13]} Bd6 {[%emt 0:02:53]} 9. O-O {[%emt 0:00:49]} c6 {[%emt 0:03:40]} 10. h3 {[%emt 0:05:39]} Qc7 {[%emt 0:03:30]} 11. Qc2 {[%emt 0:25:15]} h6 {[%emt 0:11:59]} 12. Bxf6 {[%emt 0:00:06]} Nxf6 {[%emt 0:00:10]} 13. Bf5 {[%emt 0:04:31]} Bxf5 {[%emt 0:10:09]} 14. Qxf5 {[%emt 0:00:10]} O-O {[%emt 0:00:09]} 15. Ne5 {[%emt 0:03:45]} Bxe5 {[%emt 0:05:55]} 16. dxe5 {[%emt 0:00:06]} Nd7 {[%emt 0:00:25]} 17. Rac1 {[%emt 0:02:32]} Nxe5 {[%emt 0:05:50]} 18. Nxd5 {[%emt 0:00:19]} Qd6 {[%emt 0:00:12]} 19. Nc3 {[%emt 0:01:17]} Rad8 {[%emt 0:02:26]} 20. Rfd1 {[%emt 0:01:58]} Qe7 {[%emt 0:00:59]} 21. Qe4 {[%emt 0:12:23]} f5 {[%emt 0:17:04]} 22. Qc2 {[%emt 0:01:08]} Qf7 {[%emt 0:01:01]} 23. Rxd8 {[%emt 0:01:16]} Rxd8 {[%emt 0:00:13]} 24. Rd1 {[%emt 0:00:17]} Rxd1+ {[%emt 0:04:56]} 25. Qxd1 {[%emt 0:00:14]} Qd7 {[%emt 0:01:28]} 26. Qb3+ {[%emt 0:02:29]} Kh7 {[%emt 0:01:11]} 27. f4 {[%emt 0:09:22]} Nd3 {[%emt 0:08:06]} 28. Qd1 {[%emt 0:00:46]} c5 {[%emt 0:01:06]} 29. b3 {[%emt 0:00:06]} b5 {[%emt 0:00:37]} 30. Ne2 {[%emt 0:02:19]} 1/2-1/2

[Event "XIV American Continental-ch 2019"]
[Site "Sao Paulo"]
[Date "2019.07.07"]
[Round "3.3"]
[White "Proudian, Armen"]
[Black "Delgado Ramirez, Neuris"]
[Result "1/2-1/2"]
[ECO "B90"]
[WhiteElo "2429"]
[BlackElo "2605"]
[Annotator "RC"]
[PlyCount "43"]
[EventDate "2019.07.05"]
[EventType "swiss"]
[EventCountry "BRA"]
[SourceTitle "playchess.com"]
[Source "ChessBase"]
[SourceQuality "1"]
[TimeControl "40/5400+30:1800+30"]

1. e4 {[%emt 0:00:00]} c5 {[%emt 0:22:16]} 2. Nf3 {[%emt 0:00:05]} d6 {[%emt 0:00:08]} 3. d4 {[%emt 0:00:24]} cxd4 {[%emt 0:00:05]} 4. Nxd4 {[%emt 0:00:08]} Nf6 {[%emt 0:00:04]} 5. Nc3 {[%emt 0:00:21]} a6 {[%emt 0:00:06]} 6. Be3 {[%emt 0:00:37]} e5 {[%emt 0:00:05]} 7. Nb3 {[%emt 0:00:33]} Be7 {[%emt 0:00:06]} 8. Qd2 {[%emt 0:00:54]} O-O {[%emt 0:00:11]} 9. O-O-O {[%emt 0:02:49]} a5 {[%emt 0:00:36]} 10. a4 {[%emt 0:04:53]} Be6 {[%emt 0:00:35]} 11. f4 {[%emt 0:04:37]} Qc8 {[%emt 0:00:08]} 12. Kb1 {[%emt 0:09:27]} Nc6 {[%emt 0:00:55]} 13. f5 {[%emt 0:02:47]} Nxe4 {[%emt 0:00:39]} 14. Nxe4 {[%emt 0:01:53]} Bxf5 {[%emt 0:00:17]} 15. Nc3 {[%emt 0:13:06]} Nb4 {[%emt 0:00:53]} 16. Bd3 {[%emt 0:01:25]} Bxd3 {[%emt 0:07:25]} 17. cxd3 {[%emt 0:00:08]} d5 {[%emt 0:00:02]} 18. d4 {[%emt 0:17:41]} Qf5+ {[%emt 0:02:06]} 19. Ka1 {[%emt 0:00:11]} Nc2+ {[%emt 0:09:15]} 20. Ka2 {[%emt 0:00:22]} Nb4+ {[%emt 0:00:07]} 21. Ka1 {[%emt 0:00:06]} Nc2+ {[%emt 0:00:25]} 22. Ka2 {[%emt 0:00:08]} 1/2-1/2

[Event "XIV American Continental-ch 2019"]
[Site "Sao Paulo"]
[Date "2019.07.07"]
[Round "3.4"]
[White "Gareyev, Timur"]
[Black "Almiron, Antonio"]
[Result "1-0"]
[ECO "A06"]
[WhiteElo "2588"]
[BlackElo "2402"]
[Annotator "ChessBase"]
[PlyCount "57"]
[EventDate "2019.07.05"]
[EventType "swiss"]
[EventCountry "BRA"]
[SourceTitle "playchess.com"]
[Source "ChessBase"]
[SourceQuality "1"]
[TimeControl "40/5400+30:1800+30"]

1. Nf3 {[%emt 0:04:59]} d5 {[%emt 0:00:00]} 2. c4 {[%emt 0:00:07]} c6 {[%emt 0:00:08]} 3. g3 {[%emt 0:00:42]} g6 {[%emt 0:05:12]} 4. Qa4 {[%emt 0:02:25]} Nd7 {[%emt 0:09:53]} 5. cxd5 {[%emt 0:00:18]} cxd5 {[%emt 0:00:08]} 6. Bg2 {[%emt 0:01:08]} Bg7 {[%emt 0:00:16]} 7. Nc3 {[%emt 0:00:45]} Ngf6 {[%emt 0:00:26]} 8. d4 {[%emt 0:02:29]} O-O {[%emt 0:01:11]} 9. Bf4 {[%emt 0:00:38]} Nb6 {[%emt 0:03:53]} 10. Qb3 {[%emt 0:03:18]} Nh5 {[%emt 0:04:05]} 11. Bc1 {[%emt 0:05:53]} Nc4 {[%emt 0:04:23]} 12. O-O {[%emt 0:00:41]} Nf6 {[%emt 0:10:41]} 13. Ne5 {[%emt 0:04:20]} Na5 {[%emt 0:00:09]} 14. Qa3 {[%emt 0:02:58]} Re8 {[%emt 0:13:14]} 15. Bg5 {[%emt 0:02:53]} h6 {[%emt 0:02:57]} 16. Bxf6 {[%emt 0:06:10]} exf6 {[%emt 0:00:07]} 17. Nd3 {[%emt 0:00:06]} Be6 {[%emt 0:04:04]} 18. Rfc1 {[%emt 0:06:04]} Bf8 {[%emt 0:10:42]} 19. Qa4 {[%emt 0:00:28]} Rc8 {[%emt 0:07:58]} 20. Nf4 {[%emt 0:05:09]} Rc4 {[%emt 0:00:05]} 21. Qd1 {[%emt 0:00:23]} Nc6 {[%emt 0:00:14]} 22. e3 {[%emt 0:00:13]} Ne7 {[%emt 0:00:04]} 23. Bf1 {[%emt 0:03:46]} Rc8 {[%emt 0:00:24]} 24. Qb3 {[%emt 0:02:57]} Qd7 {[%emt 0:00:27]} 25. Bb5 {[%emt 0:00:20]} Nc6 {[%emt 0:00:07]} 26. Ncxd5 {[%emt 0:00:20]} Kg7 {[%emt 0:00:54]} 27. Nxf6 {[%emt 0:00:58]} Kxf6 {[%emt 0:08:43]} 28. d5 {[%emt 0:00:12]} Na5 {[%emt 0:00:23]} 29. Qa4 {[%emt 0:03:15]} 1-0

[Event "XIV American Continental-ch 2019"]
[Site "Sao Paulo"]
[Date "2019.07.07"]
[Round "3.5"]
[White "Umetsubo, Cesar Hidemitsu"]
[Black "Pichot, Alan"]
[Result "0-1"]
[ECO "E24"]
[WhiteElo "2406"]
[BlackElo "2579"]
[Annotator "RC"]
[PlyCount "126"]
[EventDate "2019.07.05"]
[EventType "swiss"]
[EventCountry "BRA"]
[SourceTitle "playchess.com"]
[Source "ChessBase"]
[SourceQuality "1"]
[TimeControl "40/5400+30:1800+30"]

1. d4 {[%emt 0:00:00]} Nf6 {[%emt 0:00:43]} 2. c4 {[%emt 0:00:00]} e6 {[%emt 0:00:24]} 3. Nc3 {[%emt 0:00:00]} Bb4 {[%emt 0:00:20]} 4. a3 {[%emt 0:00:08]} Bxc3+ {[%emt 0:00:19]} 5. bxc3 {[%emt 0:00:12]} b6 {[%emt 0:00:24]} 6. f3 {[%emt 0:00:39]} Nc6 {[%emt 0:00:22]} 7. e4 {[%emt 0:00:08]} d6 {[%emt 0:00:18]} 8. Bd3 {[%emt 0:04:00]} Na5 {[%emt 0:00:21]} 9. f4 {[%emt 0:07:27]} Bb7 {[%emt 0:02:15]} 10. Qe2 {[%emt 0:04:18]} Nb3 {[%emt 0:01:13]} 11. Rb1 {[%emt 0:00:14]} Nxc1 {[%emt 0:00:06]} 12. Rxc1 {[%emt 0:00:02]} e5 {[%emt 0:01:41]} 13. fxe5 {[%emt 0:19:34]} dxe5 {[%emt 0:00:39]} 14. Nf3 {[%emt 0:00:09]} Nd7 {[%emt 0:00:12]} 15. c5 {[%emt 0:07:31]} O-O {[%emt 0:07:03]} 16. O-O {[%emt 0:02:07]} bxc5 {[%emt 0:01:57]} 17. dxe5 {[%emt 0:14:23]} Qe7 {[%emt 0:01:16]} 18. Rb1 {[%emt 0:02:07]} Rab8 {[%emt 0:04:24]} 19. Rb2 {[%emt 0:02:21]} Bc6 {[%emt 0:18:44]} 20. Rxb8 {[%emt 0:00:48]} Rxb8 {[%emt 0:00:06]} 21. Bc4 {[%emt 0:02:31]} Nb6 {[%emt 0:04:31]} 22. Ba2 {[%emt 0:04:41]} Bd7 {[%emt 0:08:24]} 23. Qa6 {[%emt 0:08:13]} c4 {[%emt 0:01:05]} 24. Qa5 {[%emt 0:00:44]} a6 {[%emt 0:08:08]} 25. Rb1 {[%emt 0:06:30]} Bb5 {[%emt 0:01:07]} 26. Nd4 {[%emt 0:00:26]} Qxe5 {[%emt 0:07:15]} 27. a4 {[%emt 0:02:47]} Nxa4 {[%emt 0:00:12]} 28. Nxb5 {[%emt 0:01:18]} axb5 {[%emt 0:01:17]} 29. Qxa4 {[%emt 0:00:39]} Qxe4 {[%emt 0:00:32]} 30. Qa7 {[%emt 0:01:34]} Re8 {[%emt 0:07:25]} 31. Rf1 {[%emt 0:00:20]} Qe5 {[%emt 0:02:47]} 32. Qf2 {[%emt 0:01:37]} Re7 {[%emt 0:00:28]} 33. Qf3 {[%emt 0:00:59]} g6 {[%emt 0:02:05]} 34. Qf6 {[%emt 0:01:43]} Qxf6 {[%emt 0:02:04]} 35. Rxf6 {[%emt 0:00:02]} Kg7 {[%emt 0:05:07]} 36. Rf1 {[%emt 0:00:50]} Re3 {[%emt 0:00:15]} 37. Rc1 {[%emt 0:00:10]} Re2 {[%emt 0:01:30]} 38. Bb1 {[%emt 0:00:11]} f5 {[%emt 0:06:38]} 39. Bc2 {[%emt 0:00:35]} Kf6 {[%emt 0:01:30]} 40. Bd1 {[%emt 0:00:17]} Rb2 {[%emt 0:03:56]} 41. Kf1 {[%emt 0:09:36]} c5 {[%emt 0:02:44]} 42. Rc2 {[%emt 0:02:21]} Rb1 {[%emt 0:01:01]} 43. Ke1 {[%emt 0:02:48]} g5 {[%emt 0:00:24]} 44. Kd2 {[%emt 0:01:26]} g4 {[%emt 0:00:41]} 45. g3 {[%emt 0:07:57]} h5 {[%emt 0:00:34]} 46. Ra2 {[%emt 0:08:31]} b4 {[%emt 0:00:11]} 47. Be2 {[%emt 0:00:25]} b3 {[%emt 0:16:00]} 48. Ra6+ {[%emt 0:00:10]} Kg5 {[%emt 0:00:41]} 49. Bxc4 {[%emt 0:01:27]} b2 {[%emt 0:01:08]} 50. Kc2 {[%emt 0:01:58]} Rh1 {[%emt 0:00:29]} 51. Kxb2 {[%emt 0:00:05]} Rxh2+ {[%emt 0:00:04]} 52. Kb3 {[%emt 0:00:13]} Rg2 {[%emt 0:00:22]} 53. Bf7 {[%emt 0:00:30]} Rxg3 {[%emt 0:00:04]} 54. Rg6+ {[%emt 0:00:07]} Kf4 {[%emt 0:00:07]} 55. Rh6 {[%emt 0:00:11]} Rh3 {[%emt 0:00:13]} 56. Kc4 {[%emt 0:02:19]} g3 {[%emt 0:04:52]} 57. Rg6 {[%emt 0:00:35]} Rh4 {[%emt 0:01:05]} 58. Bd5 {[%emt 0:01:43]} Ke3+ {[%emt 0:01:32]} 59. Kxc5 {[%emt 0:00:13]} Rg4 {[%emt 0:00:48]} 60. Re6+ {[%emt 0:02:41]} Kf2 {[%emt 0:00:13]} 61. Re5 {[%emt 0:01:19]} Rf4 {[%emt 0:00:30]} 62. c4 {[%emt 0:00:49]} h4 {[%emt 0:00:13]} 63. Re8 {[%emt 0:00:54]} h3 {[%emt 0:00:14] Kd4} 0-1

[Event "XIV American Continental-ch 2019"]
[Site "Sao Paulo"]
[Date "2019.07.07"]
[Round "3.7"]
[White "Fernandez Reyes, Lisandro"]
[Black "Supi, Luis Paulo"]
[Result "0-1"]
[ECO "A05"]
[WhiteElo "2378"]
[BlackElo "2562"]
[Annotator "ChessBase"]
[PlyCount "90"]
[EventDate "2019.07.05"]
[EventType "swiss"]
[EventCountry "BRA"]
[SourceTitle "playchess.com"]
[Source "ChessBase"]
[SourceQuality "1"]
[TimeControl "40/5400+30:1800+30"]

1. Nf3 {[%emt 0:00:00]} Nf6 {[%emt 0:00:10]} 2. b3 {[%emt 0:00:12]} d5 {[%emt 0:02:25]} 3. Bb2 {[%emt 0:00:22]} Bg4 {[%emt 0:01:10]} 4. e3 {[%emt 0:01:03]} Nbd7 {[%emt 0:00:43]} 5. h3 {[%emt 0:01:28]} Bh5 {[%emt 0:02:48]} 6. c4 {[%emt 0:01:53]} e6 {[%emt 0:00:32]} 7. Nc3 {[%emt 0:01:53]} c6 {[%emt 0:01:38]} 8. Be2 {[%emt 0:05:42]} Bc5 {[%emt 0:10:49]} 9. g4 {[%emt 0:06:31]} Bg6 {[%emt 0:00:19]} 10. g5 {[%emt 0:00:28]} Ne4 {[%emt 0:01:29]} 11. h4 {[%emt 0:02:43]} O-O {[%emt 0:06:18]} 12. a3 {[%emt 0:13:32]} Bd6 {[%emt 0:10:29]} 13. cxd5 {[%emt 0:13:56]} Nxc3 {[%emt 0:11:55]} 14. Bxc3 {[%emt 0:00:27]} cxd5 {[%emt 0:00:24]} 15. h5 {[%emt 0:08:05]} Be4 {[%emt 0:01:23]} 16. Rg1 {[%emt 0:02:00]} Rc8 {[%emt 0:07:04]} 17. Bb5 {[%emt 0:20:23]} Bxf3 {[%emt 0:17:02]} 18. Qxf3 {[%emt 0:00:31]} Ne5 {[%emt 0:00:22]} 19. Qe2 {[%emt 0:01:35]} Qb6 {[%emt 0:06:30]} 20. Bd4 {[%emt 0:02:41]} Qc7 {[%emt 0:00:18]} 21. f4 {[%emt 0:00:15]} Nc6 {[%emt 0:00:05]} 22. Bb2 {[%emt 0:01:41]} d4 {[%emt 0:02:36]} 23. Bxc6 {[%emt 0:01:02]} bxc6 {[%emt 0:00:15]} 24. Bxd4 {[%emt 0:01:26]} e5 {[%emt 0:00:27]} 25. Bb2 {[%emt 0:00:51]} exf4 {[%emt 0:00:37]} 26. g6 {[%emt 0:03:17]} Be5 {[%emt 0:03:01]} 27. d4 {[%emt 0:00:07]} Bf6 {[%emt 0:00:16]} 28. e4 {[%emt 0:01:15]} fxg6 {[%emt 0:01:30]} 29. O-O-O {[%emt 0:01:09]} f3 {[%emt 0:05:06]} 30. Qc4+ {[%emt 0:00:04]} Kh8 {[%emt 0:00:04]} 31. e5 {[%emt 0:01:21]} f2 {[%emt 0:00:22]} 32. exf6 {[%emt 0:01:55]} fxg1=Q {[%emt 0:01:11]} 33. fxg7+ {[%emt 0:00:48]} Kxg7 {[%emt 0:01:01]} 34. Rxg1 {[%emt 0:01:33]} Qf4+ {[%emt 0:00:11]} 35. Kb1 {[%emt 0:00:41]} Qe4+ {[%emt 0:00:29]} 36. Ka2 {[%emt 0:01:15]} Qd5 {[%emt 0:00:09]} 37. hxg6 {[%emt 0:00:41]} hxg6 {[%emt 0:02:12]} 38. Qd3 {[%emt 0:01:58]} Rf6 {[%emt 0:00:22]} 39. Rg3 {[%emt 0:00:23]} Re8 {[%emt 0:01:31]} 40. Qa6 {[%emt 0:00:38]} Re7 {[%emt 0:02:52]} 41. a4 {[%emt 0:05:56]} Rf2 {[%emt 0:05:29]} 42. Qd3 {[%emt 0:00:37]} Re6 {[%emt 0:00:59]} 43. Ka3 {[%emt 0:02:08]} Qd6+ {[%emt 0:02:20]} 44. b4 {[%emt 0:00:34]} Ree2 {[%emt 0:02:09]} 45. Bc1 {[%emt 0:02:50]} a5 {[%emt 0:01:24]} 0-1

[Event "XIV American Continental-ch 2019"]
[Site "Sao Paulo"]
[Date "2019.07.07"]
[Round "3.8"]
[White "Perez Ponsa, Federico"]
[Black "Duran Vega, Sergio"]
[Result "1-0"]
[ECO "C50"]
[WhiteElo "2560"]
[BlackElo "2364"]
[Annotator "ChessBase"]
[PlyCount "91"]
[EventDate "2019.07.05"]
[EventType "swiss"]
[EventCountry "BRA"]
[SourceTitle "playchess.com"]
[Source "ChessBase"]
[SourceQuality "1"]
[TimeControl "40/5400+30:1800+30"]

1. e4 {[%emt 0:00:00]} e5 {[%emt 0:05:50]} 2. Bc4 {[%emt 0:00:00]} Nf6 {[%emt 0:00:29]} 3. d3 {[%emt 0:00:00]} Bc5 {[%emt 0:00:39]} 4. Nf3 {[%emt 0:00:47]} Nc6 {[%emt 0:00:09]} 5. c3 {[%emt 0:03:01]} O-O {[%emt 0:01:07]} 6. Nbd2 {[%emt 0:00:14]} d5 {[%emt 0:02:30]} 7. exd5 {[%emt 0:00:46]} Nxd5 {[%emt 0:00:05]} 8. Ne4 {[%emt 0:00:19]} Bb6 {[%emt 0:17:01]} 9. O-O {[%emt 0:02:47]} a6 {[%emt 0:12:55]} 10. Re1 {[%emt 0:09:21]} Kh8 {[%emt 0:13:26]} 11. Ng3 {[%emt 0:09:28]} f6 {[%emt 0:02:09]} 12. Bd2 {[%emt 0:11:18]} Qd6 {[%emt 0:04:43]} 13. b4 {[%emt 0:01:58]} Be6 {[%emt 0:02:48]} 14. Ne4 {[%emt 0:05:09]} Qd7 {[%emt 0:02:41]} 15. a4 {[%emt 0:04:33]} a5 {[%emt 0:07:42]} 16. b5 {[%emt 0:02:20]} Nce7 {[%emt 0:00:14]} 17. d4 {[%emt 0:01:25]} exd4 {[%emt 0:02:57]} 18. cxd4 {[%emt 0:02:02]} Bg4 {[%emt 0:09:42]} 19. Nc5 {[%emt 0:03:03]} Bxc5 {[%emt 0:01:24]} 20. dxc5 {[%emt 0:00:06]} Qf5 {[%emt 0:01:49]} 21. Nd4 {[%emt 0:04:36]} Qd7 {[%emt 0:03:46]} 22. Qb3 {[%emt 0:03:29]} c6 {[%emt 0:00:07]} 23. Qg3 {[%emt 0:02:26]} Ng6 {[%emt 0:02:42]} 24. Re4 {[%emt 0:10:13]} f5 {[%emt 0:01:55]} 25. Re6 {[%emt 0:01:02]} f4 {[%emt 0:02:52]} 26. Qxg4 {[%emt 0:00:10]} Nf6 {[%emt 0:00:24]} 27. Qe2 {[%emt 0:03:50]} Qxd4 {[%emt 0:00:01]} 28. Rc1 {[%emt 0:00:15]} Qxc5 {[%emt 0:01:09]} 29. bxc6 {[%emt 0:01:26]} bxc6 {[%emt 0:00:07]} 30. Bb5 {[%emt 0:03:26]} Qg5 {[%emt 0:00:19]} 31. Bxc6 {[%emt 0:01:14]} Rac8 {[%emt 0:00:23]} 32. Re1 {[%emt 0:03:06]} Nh4 {[%emt 0:00:53]} 33. Qe5 {[%emt 0:01:42]} Qxe5 {[%emt 0:00:43]} 34. R1xe5 {[%emt 0:00:02]} Rfd8 {[%emt 0:00:33]} 35. Bxa5 {[%emt 0:00:22]} Rd1+ {[%emt 0:00:43]} 36. Re1 {[%emt 0:00:02]} Rxe1+ {[%emt 0:00:17]} 37. Bxe1 {[%emt 0:00:02]} Nf5 {[%emt 0:00:28]} 38. Bf3 {[%emt 0:04:07]} Nd4 {[%emt 0:00:21]} 39. Rd6 {[%emt 0:00:17]} Nxf3+ {[%emt 0:00:51]} 40. gxf3 {[%emt 0:00:02]} Kg8 {[%emt 0:00:23]} 41. Bd2 {[%emt 0:33:19]} Rc4 {[%emt 0:12:47]} 42. a5 {[%emt 0:00:00]} Kf7 {[%emt 0:00:51]} 43. a6 {[%emt 0:00:00]} Ra4 {[%emt 0:00:54]} 44. Rb6 {[%emt 0:00:00]} Kg6 {[%emt 0:08:55]} 45. Bc3 {[%emt 0:00:00]} Kf5 {[%emt 0:00:51]} 46. Rb5+ {[%emt 0:00:00]} 1-0